[Event "WYCC 2018 G18"]
[Site "Halkidiki"]
[Date "2018.10.23"]
[Round "5"]
[White "Hng, Mei-En Emmanuelle"]
[Black "Gajcin, Marina"]
[Result "0-1"]
[ECO "B21"]
[WhiteElo "2020"]
[BlackElo "2153"]
[Annotator "NA"]
[PlyCount "120"]
[EventDate "2018.10.20"]
[EventType "swiss"]
[EventCountry "GRE"]
[SourceTitle "playchess.com"]
[Source "ChessBase"]
[SourceQuality "1"]
[TimeControl "40/5400+30:1800+30"]

1. e4 {[%emt 0:00:00]} c5 {[%emt 0:00:00]} 2. d4 {[%emt 0:00:00]} cxd4 {[%emt 0:00:00]} 3. c3 {[%emt 0:00:00]} dxc3 {[%emt 0:00:00]} 4. Nxc3 {[%emt 0:00:00]} e6 {[%emt 0:00:06]} 5. Bc4 {[%emt 0:00:08]} a6 {[%emt 0:00:36]} 6. Nf3 {[%emt 0:00:59]} b5 {[%emt 0:00:25]} 7. Bb3 {[%emt 0:00:17]} Bb7 {[%emt 0:00:15]} 8. Qe2 {[%emt 0:00:40]} Nc6 {[%emt 0:01:22]} 9. O-O {[%emt 0:00:55]} Nge7 {[%emt 0:00:11]} 10. a3 {[%emt 0:07:03]} Ng6 {[%emt 0:05:59]} 11. Rd1 {[%emt 0:02:20]} Be7 {[%emt 0:04:20]} 12. Be3 {[%emt 0:05:53]} O-O {[%emt 0:07:17]} 13. Rac1 {[%emt 0:08:22]} Rc8 {[%emt 0:05:54]} 14. Ba2 {[%emt 0:04:00]} Na5 {[%emt 0:08:09]} 15. Bd4 {[%emt 0:18:48]} Nc4 {[%emt 0:10:02]} 16. Bxc4 {[%emt 0:02:11]} bxc4 {[%emt 0:13:26]} 17. Qe3 {[%emt 0:03:49]} d5 {[%emt 0:07:19]} 18. g3 {[%emt 0:19:16]} Qe8 {[%emt 0:07:03]} 19. e5 {[%emt 0:02:59]} f5 {[%emt 0:01:04]} 20. Qd2 {[%emt 0:07:03]} Bc6 {[%emt 0:05:41]} 21. Kg2 {[%emt 0:01:06]} f4 {[%emt 0:02:39]} 22. g4 {[%emt 0:00:07]} Qf7 {[%emt 0:00:51]} 23. Qe2 {[%emt 0:01:15]} Rb8 {[%emt 0:03:10]} 24. Rh1 {[%emt 0:04:34]} Nh4+ {[%emt 0:02:32]} 25. Nxh4 {[%emt 0:00:15]} Bxh4 {[%emt 0:00:03]} 26. f3 {[%emt 0:00:11]} Rb3 {[%emt 0:00:50]} 27. Rhd1 {[%emt 0:01:03]} Rfb8 {[%emt 0:01:08]} 28. Rd2 {[%emt 0:00:21]} Qb7 {[%emt 0:01:02]} 29. Nd1 {[%emt 0:01:03]} Be8 {[%emt 0:01:30]} 30. Nf2 {[%emt 0:01:57]} Bd8 {[%emt 0:00:15]} 31. Nd1 {[%emt 0:00:58]} Bg6 {[%emt 0:00:57]} 32. Qf2 {[%emt 0:01:03]} Ba5 {[%emt 0:00:59]} 33. Bc3 {[%emt 0:00:44]} Bxc3 {[%emt 0:00:28]} 34. Rxc3 {[%emt 0:00:08]} Rb5 {[%emt 0:03:24]} 35. Qd4 {[%emt 0:00:42]} Rf8 {[%emt 0:00:27]} 36. Rc1 {[%emt 0:00:47]} Qb6 {[%emt 0:02:00]} 37. Rc3 {[%emt 0:01:14]} Qb7 {[%emt 0:04:23]} 38. Rc1 {[%emt 0:00:17]} Qb6 {[%emt 0:00:58]} 39. Rc3 {[%emt 0:00:06]} Qb8 {[%emt 0:00:58]} 40. Rc1 {[%emt 0:00:00]} Qb7 {[%emt 0:00:00]} 41. Rc3 {[%emt 0:01:49]} h6 {[%emt 0:08:41]} 42. Rc1 {[%emt 0:02:55]} Bh7 {[%emt 0:01:19]} 43. Ra1 {[%emt 0:10:03]} Qb6 {[%emt 0:03:05]} 44. Kf2 {[%emt 0:12:26]} g5 {[%emt 0:01:08]} 45. Rc1 {[%emt 0:01:54]} Rb8 {[%emt 0:02:51]} 46. Rc3 {[%emt 0:02:12]} Bd3 {[%emt 0:02:27]} 47. Qxb6 {[%emt 0:01:14]} R8xb6 {[%emt 0:00:03]} 48. b4 {[%emt 0:00:10]} a5 {[%emt 0:06:09]} 49. Rcxd3 {[%emt 0:03:06]} cxd3 {[%emt 0:00:50]} 50. Nc3 {[%emt 0:00:01]} axb4 {[%emt 0:00:25]} 51. Nxb5 {[%emt 0:00:06]} Rxb5 {[%emt 0:00:03]} 52. axb4 {[%emt 0:00:14]} Rxb4 {[%emt 0:00:03]} 53. Rxd3 {[%emt 0:01:05]} Rb2+ {[%emt 0:00:05]} 54. Ke1 {[%emt 0:00:05]} Rxh2 {[%emt 0:08:34]} 55. Ra3 {[%emt 0:00:06]} Rc2 {[%emt 0:00:35]} 56. Ra6 {[%emt 0:01:55]} Kf7 {[%emt 0:00:17]} 57. Ra7+ {[%emt 0:00:06]} Ke8 {[%emt 0:00:26]} 58. Rh7 {[%emt 0:00:32]} Rc3 {[%emt 0:00:12]} 59. Rxh6 {[%emt 0:00:11]} Re3+ {[%emt 0:00:11]} 60. Kf2 {[%emt 0:00:09]} Rxe5 {[%emt 0:00:24]} 0-1

[Event "WYCC 2018 G18"]
[Site "Halkidiki"]
[Date "2018.10.23"]
[Round "5"]
[White "Bauyrzhan, Arnash"]
[Black "Miller, Rachel"]
[Result "1-0"]
[ECO "C50"]
[WhiteElo "2011"]
[BlackElo "1859"]
[Annotator "NA"]
[PlyCount "55"]
[EventDate "2018.10.20"]
[EventType "swiss"]
[EventCountry "GRE"]
[SourceTitle "playchess.com"]
[Source "ChessBase"]
[SourceQuality "1"]
[TimeControl "40/5400+30:1800+30"]

1. e4 {[%emt 0:00:00]} e5 {[%emt 0:00:00]} 2. Nf3 {[%emt 0:00:04]} Nc6 {[%emt 0:00:00]} 3. Bc4 {[%emt 0:00:25]} Bc5 {[%emt 0:00:20]} 4. d3 {[%emt 0:00:45]} Nf6 {[%emt 0:00:32]} 5. O-O {[%emt 0:00:43]} d6 {[%emt 0:00:20]} 6. h3 {[%emt 0:00:28]} O-O {[%emt 0:03:35]} 7. a4 {[%emt 0:01:39]} h6 {[%emt 0:00:39]} 8. c3 {[%emt 0:02:28]} a5 {[%emt 0:00:50]} 9. Nbd2 {[%emt 0:00:26]} Be6 {[%emt 0:03:02]} 10. Bxe6 {[%emt 0:10:15]} fxe6 {[%emt 0:00:06]} 11. Nc4 {[%emt 0:00:32]} Qe8 {[%emt 0:14:55]} 12. Re1 {[%emt 0:11:09]} Qg6 {[%emt 0:08:45]} 13. Be3 {[%emt 0:01:50]} Bxe3 {[%emt 0:02:56]} 14. Rxe3 {[%emt 0:00:30]} Nh5 {[%emt 0:01:13]} 15. Nh2 {[%emt 0:11:03]} Rf4 {[%emt 0:08:07]} 16. Ng4 {[%emt 0:09:05]} Raf8 {[%emt 0:02:47]} 17. Qe2 {[%emt 0:04:08]} b6 {[%emt 0:10:12]} 18. Rf1 {[%emt 0:01:47]} Ne7 {[%emt 0:10:24]} 19. Qd1 {[%emt 0:14:11]} Kh7 {[%emt 0:01:05]} 20. b3 {[%emt 0:07:46]} Ng8 {[%emt 0:08:10]} 21. g3 {[%emt 0:04:06]} R4f7 {[%emt 0:00:54]} 22. d4 {[%emt 0:04:23]} exd4 {[%emt 0:05:56]} 23. cxd4 {[%emt 0:00:02]} Ngf6 {[%emt 0:06:51]} 24. Nge5 {[%emt 0:02:44]} dxe5 {[%emt 0:02:28]} 25. Nxe5 {[%emt 0:00:08]} Qg5 {[%emt 0:01:54]} 26. h4 {[%emt 0:00:23]} Ng4 {[%emt 0:00:34]} 27. hxg5 {[%emt 0:00:36]} Nxe3 {[%emt 0:00:04]} 28. g6+ {[%emt 0:00:28]} 1-0

[Event "WYCC 2018 G18"]
[Site "Halkidiki"]
[Date "2018.10.23"]
[Round "5"]
[White "Li, Yilin"]
[Black "Nemcova, Kamila"]
[Result "1-0"]
[ECO "B01"]
[WhiteElo "1993"]
[BlackElo "1879"]
[Annotator "NA"]
[PlyCount "37"]
[EventDate "2018.10.20"]
[EventType "swiss"]
[EventCountry "GRE"]
[SourceTitle "playchess.com"]
[Source "ChessBase"]
[SourceQuality "1"]
[TimeControl "40/5400+30:1800+30"]

1. e4 d5 2. exd5 Nf6 3. c4 e6 4. dxe6 Bxe6 5. Nc3 Nc6 6. Nf3 Bc5 7. Be2 Bf5 8. O-O O-O 9. a3 Re8 10. b4 Bd4 11. Bb2 Qd7 12. Ra2 Qe6 13. b5 Bxc3 14. Bxc3 Qxe2 15. Qxe2 Rxe2 16. bxc6 bxc6 17. Nd4 Re5 18. f4 Rc5 19. Bb4 1-0

[Event "WYCC 2018 G18"]
[Site "Halkidiki"]
[Date "2018.10.23"]
[Round "5"]
[White "Nass, Sara"]
[Black "Cibikova, Sofia Anna"]
[Result "0-1"]
[ECO "B40"]
[WhiteElo "1986"]
[BlackElo "1809"]
[Annotator "NA"]
[PlyCount "90"]
[EventDate "2018.10.20"]
[EventType "swiss"]
[EventCountry "GRE"]
[SourceTitle "playchess.com"]
[Source "ChessBase"]
[SourceQuality "1"]
[TimeControl "40/5400+30:1800+30"]

1. e4 {[%emt 0:00:00]} c5 {[%emt 0:00:00]} 2. Nf3 {[%emt 0:00:00]} e6 {[%emt 0:00:00]} 3. d4 {[%emt 0:00:00]} cxd4 {[%emt 0:00:00]} 4. Nxd4 {[%emt 0:00:07]} Nf6 {[%emt 0:00:09]} 5. Nc3 {[%emt 0:00:14]} Nc6 {[%emt 0:00:13]} 6. a3 {[%emt 0:01:02]} Qa5 {[%emt 0:09:51]} 7. Nb3 {[%emt 0:04:51]} Qc7 {[%emt 0:04:41]} 8. Be3 {[%emt 0:21:59]} a6 {[%emt 0:03:45]} 9. f4 {[%emt 0:06:39]} d6 {[%emt 0:06:12]} 10. Be2 {[%emt 0:03:47]} Be7 {[%emt 0:05:25]} 11. O-O {[%emt 0:01:29]} b5 {[%emt 0:05:42]} 12. Kh1 {[%emt 0:10:44]} Bb7 {[%emt 0:06:20]} 13. Bf3 {[%emt 0:02:58]} Rd8 {[%emt 0:08:12]} 14. Qe2 {[%emt 0:09:07]} Nd7 {[%emt 0:12:13]} 15. Rad1 {[%emt 0:06:52]} O-O {[%emt 0:02:23]} 16. Qf2 {[%emt 0:07:06]} Na5 {[%emt 0:08:35]} 17. Nxa5 {[%emt 0:03:16]} Qxa5 {[%emt 0:00:07]} 18. e5 {[%emt 0:07:07]} d5 {[%emt 0:02:36]} 19. Bd4 {[%emt 0:06:14]} Qc7 {[%emt 0:04:32]} 20. Qg3 {[%emt 0:01:29]} Bc5 {[%emt 0:03:18]} 21. Bxc5 {[%emt 0:00:33]} Nxc5 {[%emt 0:00:52]} 22. f5 {[%emt 0:01:39]} exf5 {[%emt 0:07:26]} 23. Nxd5 {[%emt 0:02:51]} Bxd5 {[%emt 0:00:19]} 24. Bxd5 {[%emt 0:00:40]} Ne4 {[%emt 0:00:50]} 25. Bxe4 {[%emt 0:01:07]} fxe4 {[%emt 0:00:06]} 26. c3 {[%emt 0:00:15]} Rxd1 {[%emt 0:01:25]} 27. Rxd1 {[%emt 0:00:12]} Rd8 {[%emt 0:03:41]} 28. Rxd8+ {[%emt 0:01:11]} Qxd8 {[%emt 0:00:07]} 29. Qg4 {[%emt 0:00:24]} g6 {[%emt 0:01:55]} 30. h4 {[%emt 0:00:10]} Qd3 {[%emt 0:01:44]} 31. h5 {[%emt 0:00:44]} Kg7 {[%emt 0:00:59]} 32. Qf4 {[%emt 0:00:18]} Qd1+ {[%emt 0:00:14]} 33. Kh2 {[%emt 0:00:02]} Qxh5+ {[%emt 0:00:07]} 34. Kg3 {[%emt 0:00:17]} Qf5 {[%emt 0:00:53]} 35. b3 {[%emt 0:01:15]} Qe6 {[%emt 0:01:25]} 36. Qf6+ {[%emt 0:00:46]} Qxf6 {[%emt 0:00:12]} 37. exf6+ {[%emt 0:00:01]} Kxf6 {[%emt 0:00:08]} 38. Kf4 {[%emt 0:00:01]} e3 {[%emt 0:00:44]} 39. Kxe3 {[%emt 0:00:02]} Ke5 {[%emt 0:00:06]} 40. Kd3 {[%emt 0:00:00]} Kd5 {[%emt 0:00:00]} 41. Ke3 {[%emt 0:05:12]} h5 {[%emt 0:01:29]} 42. Kf4 {[%emt 0:00:39]} f6 {[%emt 0:00:10]} 43. g3 {[%emt 0:01:24]} a5 {[%emt 0:01:08]} 44. Ke3 {[%emt 0:00:32]} g5 {[%emt 0:00:33]} 45. Kf3 {[%emt 0:00:58]} a4 {[%emt 0:01:31]} 0-1

[Event "WYCC 2018 G18"]
[Site "Halkidiki"]
[Date "2018.10.23"]
[Round "5"]
[White "Caballero Quijano, Mitzy Mishell"]
[Black "Sliwicka, Alicja"]
[Result "1/2-1/2"]
[ECO "A43"]
[WhiteElo "1956"]
[BlackElo "2264"]
[Annotator "NA"]
[PlyCount "66"]
[EventDate "2018.10.20"]
[EventType "swiss"]
[EventCountry "GRE"]
[SourceTitle "playchess.com"]
[Source "ChessBase"]
[SourceQuality "1"]
[TimeControl "40/5400+30:1800+30"]

1. d4 {[%emt 0:03:00]} Nf6 {[%emt 0:00:00]} 2. Nf3 {[%emt 0:00:08]} c5 {[%emt 0:00:00]} 3. d5 {[%emt 0:00:13]} b5 {[%emt 0:00:00]} 4. Bg5 {[%emt 0:00:08]} d6 {[%emt 0:00:03]} 5. Bxf6 {[%emt 0:00:41]} exf6 {[%emt 0:00:07]} 6. e4 {[%emt 0:00:13]} a6 {[%emt 0:00:09]} 7. a4 {[%emt 0:00:48]} b4 {[%emt 0:00:08]} 8. c3 {[%emt 0:01:19] A43: Schmid Benoni} (8. Nbd2 f5 9. exf5 Bxf5 10. Bd3 Bg4 11. h3 Bc8 12. O-O Be7 13. Re1 O-O 14. a5 Ra7 15. Nc4 Bd7 {1-0 (79) Sokolov,I (2645)-Vaisser,A (2533) Mulhouse 2011}) 8... a5 {[%emt 0:08:50]} 9. Bb5+ {[%emt 0:02:50]} Bd7 {[%emt 0:03:43]} 10. c4 $146 {[%emt 0:02:58]} ({Predecessor:} 10. Bxd7+ Nxd7 11. cxb4 axb4 12. Nbd2 Be7 13. O-O O-O 14. Nc4 Re8 15. a5 Ra6 {0-1 (48) Pantovic,D (2137)-Stojanovic,Z (2245) Vrnjacka Banja 2007}) 10... g6 {[%emt 0:01:13]} 11. O-O {[%emt 0:00:23]} Bg7 {[%emt 0:00:13]} 12. Ra2 {[%emt 0:07:36]} O-O {[%emt 0:03:18]} 13. b3 {[%emt 0:00:13]} f5 {[%emt 0:05:34]} 14. Bxd7 {[%emt 0:03:18]} Qxd7 {[%emt 0:07:35]} 15. exf5 {[%emt 0:00:41]} Qxf5 {[%emt 0:00:25]} 16. Re2 {[%emt 0:02:30]} Nd7 {[%emt 0:01:44]} 17. Nbd2 {[%emt 0:09:57]} Rae8 {[%emt 0:09:54]} 18. Rfe1 {[%emt 0:00:13]} Nf6 {[%emt 0:01:03]} 19. Rxe8 {[%emt 0:02:29]} Rxe8 {[%emt 0:00:15]} 20. Rxe8+ {[%emt 0:00:07]} Nxe8 {[%emt 0:00:09]} 21. Qe2 {[%emt 0:00:16]} Kf8 {[%emt 0:06:49]} 22. Ne4 {[%emt 0:02:34]} h6 $11 {[%emt 0:08:06]} 23. h3 {[%emt 0:00:35]} Qf4 {[%emt 0:03:28]} 24. Qe3 {[%emt 0:04:05]} Qxe3 {[%emt 0:02:03]} 25. fxe3 {[%emt 0:00:10]} f5 {[%emt 0:01:17]} 26. Nf2 {[%emt 0:00:13]} Nf6 {[%emt 0:03:29]} 27. g4 {[%emt 0:00:21]} fxg4 {[%emt 0:04:18]} 28. hxg4 {[%emt 0:00:08]} g5 {[%emt 0:02:51]} 29. Nd2 {[%emt 0:01:14]} Kf7 {[%emt 0:05:40]} 30. Nde4 {[%emt 0:02:33]} Nxe4 {[%emt 0:02:35]} 31. Nxe4 {[%emt 0:00:07]} Be5 {[%emt 0:00:38]} 32. Kg2 {[%emt 0:00:08]} Kg6 {[%emt 0:01:16]} 33. Kf3 {[%emt 0:00:21]} Kf7 {[%emt 0:02:11]} 1/2-1/2

[Event "WYCC 2018 G18"]
[Site "Halkidiki"]
[Date "2018.10.23"]
[Round "5"]
[White "Prakapuk, Vera"]
[Black "Afonasieva, Anna"]
[Result "0-1"]
[ECO "B11"]
[WhiteElo "1949"]
[BlackElo "2245"]
[Annotator "NA"]
[PlyCount "154"]
[EventDate "2018.10.20"]
[EventType "swiss"]
[EventCountry "GRE"]
[SourceTitle "playchess.com"]
[Source "ChessBase"]
[SourceQuality "1"]
[TimeControl "40/5400+30:1800+30"]

1. e4 {[%emt 0:00:00]} c6 {[%emt 0:00:00]} 2. Nf3 {[%emt 0:02:07]} d5 {[%emt 0:00:00]} 3. Nc3 {[%emt 0:00:05]} Bg4 {[%emt 0:01:01]} 4. h3 {[%emt 0:00:04]} Bxf3 {[%emt 0:00:08]} 5. Qxf3 {[%emt 0:00:04]} Nf6 {[%emt 0:02:05]} 6. d3 {[%emt 0:01:26]} e6 {[%emt 0:03:24]} 7. g3 {[%emt 0:00:33]} Bb4 {[%emt 0:02:27] B11: Caro-Kann: Two Knights Variation} 8. a3 {[%emt 0:10:21] LiveBook: 5 Games} (8. Bd2 d4 9. Nb1 Qb6 10. Bg2 O-O 11. O-O a5 12. Bc1 a4 13. a3 Be7 14. Nd2 Nbd7 15. Qe2 Qc7 16. f4 b5 {0-1 (43) Andriasian,Z (2603)-Shimanov,A (2626) chess.com INT 2018}) 8... Bxc3+ {[%emt 0:01:15]} 9. bxc3 {[%emt 0:00:05]} dxe4 {[%emt 0:00:16]} 10. dxe4 {[%emt 0:00:05]} Qa5 {[%emt 0:01:04]} 11. Bd2 {[%emt 0:02:17]} O-O $146 {[%emt 0:03:36]} ({Predecessor:} 11... Nbd7 12. Bg2 Qa6 13. Qd3 Qxd3 14. cxd3 Nc5 15. Ke2 {1-0 (26) Hess,R (2483)-Antal,G (2493) Lubbock 2009}) 12. Bg2 {[%emt 0:01:10]} Qa4 {[%emt 0:05:41]} 13. e5 {[%emt 0:11:32]} Nfd7 {[%emt 0:02:26]} 14. Qf4 {[%emt 0:01:34]} Qb5 {[%emt 0:01:36]} 15. a4 {[%emt 0:05:11]} Qxe5+ {[%emt 0:00:39]} 16. Qxe5 {[%emt 0:00:10]} Nxe5 {[%emt 0:00:05]} 17. Rb1 {[%emt 0:02:27]} b6 {[%emt 0:04:12]} 18. Ke2 {[%emt 0:07:25]} Nbd7 {[%emt 0:16:06]} 19. f4 {[%emt 0:06:13]} Nc4 {[%emt 0:00:49]} 20. Bxc6 {[%emt 0:01:47]} Rad8 {[%emt 0:01:08]} 21. Rhd1 {[%emt 0:05:37]} Nc5 {[%emt 0:04:40]} 22. Be3 {[%emt 0:02:14]} Nxe3 {[%emt 0:07:52]} 23. Kxe3 {[%emt 0:00:08]} Rxd1 {[%emt 0:03:31]} 24. Rxd1 {[%emt 0:00:06]} Rc8 {[%emt 0:00:07]} 25. Rd4 {[%emt 0:09:42]} Kf8 {[%emt 0:01:07]} 26. Bb5 {[%emt 0:02:19]} Ke7 {[%emt 0:00:53]} 27. g4 {[%emt 0:01:42]} Rc7 {[%emt 0:02:00]} 28. Kd2 {[%emt 0:02:59]} Nb7 {[%emt 0:04:04]} 29. Bd3 {[%emt 0:03:28]} h6 {[%emt 0:01:13]} 30. Bb5 {[%emt 0:01:45]} Nd6 {[%emt 0:01:09]} 31. Bd3 {[%emt 0:03:44]} Rc5 {[%emt 0:01:54]} 32. Be2 {[%emt 0:05:39]} f6 {[%emt 0:01:32]} 33. Kd3 {[%emt 0:01:54]} e5 {[%emt 0:02:58]} 34. Rb4 {[%emt 0:04:49]} e4+ {[%emt 0:03:26]} 35. Kd4 {[%emt 0:00:08]} g6 {[%emt 0:00:39]} 36. Rb1 {[%emt 0:01:04]} Ke6 {[%emt 0:02:16]} 37. Rg1 {[%emt 0:01:07]} Ra5 {[%emt 0:02:49]} 38. Ra1 {[%emt 0:00:39]} Rd5+ {[%emt 0:05:59]} 39. Ke3 {[%emt 0:00:09]} Rc5 {[%emt 0:00:07]} 40. Kd4 {[%emt 0:00:00]} f5 {[%emt 0:00:00]} 41. c4 {[%emt 0:03:02]} Nb7 {[%emt 0:08:11]} 42. Rg1 {[%emt 0:11:25]} Ra5 {[%emt 0:03:58]} 43. gxf5+ {[%emt 0:01:07]} Kxf5 {[%emt 0:00:17]} 44. Bg4+ {[%emt 0:03:42]} Kxf4 {[%emt 0:01:29]} 45. Rf1+ {[%emt 0:00:52]} Kg5 {[%emt 0:01:36]} 46. Kxe4 {[%emt 0:05:37]} h5 {[%emt 0:00:22]} 47. Be2 {[%emt 0:02:42]} Nd6+ {[%emt 0:00:11]} 48. Kf3 {[%emt 0:01:57]} Rxa4 {[%emt 0:02:35]} 49. Rg1+ {[%emt 0:01:55]} Kf6 {[%emt 0:00:07]} 50. Bd3 {[%emt 0:00:22]} g5 {[%emt 0:00:56]} 51. h4 {[%emt 0:00:54]} g4+ {[%emt 0:00:44]} 52. Ke2 {[%emt 0:00:10]} Ra5 $19 {[%emt 0:02:34]} ({Don't take} 52... Nxc4 53. Rf1+ Kg7 54. Rf5) 53. Rf1+ {[%emt 0:04:47]} Ke6 {[%emt 0:00:28]} 54. Rf8 {[%emt 0:00:55]} Nf5 {[%emt 0:00:58]} 55. Rh8 {[%emt 0:00:58]} Nxh4 {[%emt 0:00:17]} 56. Kf2 {[%emt 0:01:00]} Nf3 {[%emt 0:04:58]} 57. Rh6+ {[%emt 0:00:48]} Ke7 {[%emt 0:02:16]} 58. Kg3 {[%emt 0:00:47]} Rg5 {[%emt 0:00:36]} 59. Kf4 {[%emt 0:00:48]} g3 {[%emt 0:00:51]} 60. Bf1 {[%emt 0:01:11]} g2 {[%emt 0:02:43]} 61. Bxg2 {[%emt 0:00:06]} Rxg2 {[%emt 0:00:04]} 62. Kxf3 {[%emt 0:00:06]} Rxc2 {[%emt 0:00:31]} 63. Rxh5 {[%emt 0:00:38]} Kd6 {[%emt 0:00:11]} 64. Rh7 {[%emt 0:01:35]} a5 {[%emt 0:00:23]} 65. Rh6+ {[%emt 0:00:43]} Kc5 {[%emt 0:00:09]} 66. Ke3 {[%emt 0:00:19]} Rxc4 {[%emt 0:00:20]} 67. Kd3 {[%emt 0:00:18]} b5 {[%emt 0:00:53]} 68. Rh1 {[%emt 0:00:14]} a4 {[%emt 0:00:42]} 69. Rh2 {[%emt 0:00:25]} Kb4 {[%emt 0:00:48]} 70. Rb2+ {[%emt 0:00:26]} Ka5 {[%emt 0:00:03]} 71. Rh2 {[%emt 0:00:36]} a3 {[%emt 0:00:46]} 72. Rh1 {[%emt 0:00:42]} Ka4 {[%emt 0:00:18]} 73. Ra1 {[%emt 0:00:19]} Rc6 {[%emt 0:00:29]} 74. Rh1 {[%emt 0:00:31]} a2 {[%emt 0:00:19]} 75. Rh8 {[%emt 0:00:18]} Ra6 {[%emt 0:00:16]} 76. Rh1 {[%emt 0:00:32]} Kb3 {[%emt 0:00:08]} 77. Ra1 {[%emt 0:00:19]} Kb2 {[%emt 0:00:04]} 0-1

[Event "WYCC 2018 G18"]
[Site "Halkidiki"]
[Date "2018.10.23"]
[Round "5"]
[White "Sevilla, Julia"]
[Black "Jie, Tianhui"]
[Result "1/2-1/2"]
[ECO "A40"]
[WhiteElo "1947"]
[BlackElo "1849"]
[Annotator "NA"]
[PlyCount "112"]
[EventDate "2018.10.20"]
[EventType "swiss"]
[EventCountry "GRE"]
[SourceTitle "playchess.com"]
[Source "ChessBase"]
[SourceQuality "1"]
[TimeControl "40/5400+30:1800+30"]

1. d4 {[%emt 0:00:00]} Nf6 {[%emt 0:00:00]} 2. c4 {[%emt 0:00:00]} e6 {[%emt 0:00:00]} 3. g3 {[%emt 0:00:00]} Bb4+ {[%emt 0:00:00]} 4. Bd2 {[%emt 0:00:00]} Bxd2+ {[%emt 0:00:04]} 5. Nxd2 {[%emt 0:00:00]} O-O {[%emt 0:00:12]} 6. Bg2 {[%emt 0:00:00]} d6 {[%emt 0:00:14]} 7. Ngf3 {[%emt 0:00:00]} Nc6 {[%emt 0:00:35]} 8. O-O {[%emt 0:00:49]} e5 {[%emt 0:00:14]} 9. d5 {[%emt 0:00:04]} Nb8 {[%emt 0:00:16]} 10. e4 {[%emt 0:00:19]} a5 {[%emt 0:00:14]} 11. b3 {[%emt 0:00:25]} Na6 {[%emt 0:01:11]} 12. a3 {[%emt 0:00:45]} Bd7 {[%emt 0:02:09]} 13. Qc2 $11 {[%emt 0:02:41]} c6 {[%emt 0:06:33]} 14. dxc6 {[%emt 0:05:37]} bxc6 {[%emt 0:00:34]} 15. Ne1 {[%emt 0:03:22]} Qe7 {[%emt 0:02:32]} 16. Nd3 {[%emt 0:05:10]} Rfc8 {[%emt 0:04:23]} 17. Rfe1 {[%emt 0:17:05]} Ne8 {[%emt 0:07:17]} 18. c5 {[%emt 0:01:29]} Nxc5 {[%emt 0:03:09]} 19. Nxc5 {[%emt 0:00:21]} dxc5 {[%emt 0:00:12]} 20. a4 {[%emt 0:06:33]} f6 {[%emt 0:05:05]} 21. Rac1 {[%emt 0:00:39]} Nc7 {[%emt 0:01:40]} 22. Bf1 {[%emt 0:11:37]} Kh8 {[%emt 0:03:44]} 23. Qxc5 {[%emt 0:02:24]} Qxc5 {[%emt 0:00:23]} 24. Rxc5 {[%emt 0:00:01]} Ne6 {[%emt 0:00:15]} 25. Rc3 {[%emt 0:00:17]} Nd4 {[%emt 0:00:33]} 26. Nf3 {[%emt 0:03:15]} Be6 {[%emt 0:04:21]} 27. Nxd4 {[%emt 0:17:12]} exd4 {[%emt 0:00:13]} 28. Rd3 {[%emt 0:00:04]} c5 {[%emt 0:00:27]} 29. Rf3 {[%emt 0:02:24]} c4 {[%emt 0:03:14]} 30. bxc4 {[%emt 0:02:07]} Bxc4 {[%emt 0:00:11]} 31. e5 {[%emt 0:01:37]} Bxf1 {[%emt 0:02:51]} 32. Kxf1 {[%emt 0:00:15]} fxe5 {[%emt 0:00:07]} 33. Rxe5 {[%emt 0:00:05]} h6 {[%emt 0:02:23]} 34. Rff5 {[%emt 0:01:34]} Rc4 {[%emt 0:08:09]} 35. Rxa5 {[%emt 0:05:26]} Rxa4 {[%emt 0:00:21]} 36. Rxa8+ {[%emt 0:00:27]} Rxa8 {[%emt 0:00:08]} 37. Rd5 {[%emt 0:00:04]} Ra4 {[%emt 0:00:10]} 38. Ke2 {[%emt 0:00:06]} Ra2+ {[%emt 0:03:44]} 39. Kf3 {[%emt 0:00:06]} Rd2 {[%emt 0:00:30]} 40. Rf5 {[%emt 0:00:00]} Kh7 {[%emt 0:00:00]} 41. h4 {[%emt 0:01:45]} g6 {[%emt 0:06:46]} 42. Rf7+ {[%emt 0:00:38]} Kg8 {[%emt 0:00:09]} 43. Rd7 {[%emt 0:00:27]} Kh8 {[%emt 0:02:05]} 44. Kg2 {[%emt 0:07:12]} Rd1 {[%emt 0:01:26]} 45. Kf3 {[%emt 0:07:16]} Rd2 {[%emt 0:00:14]} 46. Rf7 {[%emt 0:00:12]} Kg8 {[%emt 0:00:50]} 47. Re7 {[%emt 0:00:37]} Kh8 {[%emt 0:09:16]} 48. Re2 {[%emt 0:01:28]} Rd1 {[%emt 0:00:36]} 49. Ra2 {[%emt 0:00:12]} Kg7 {[%emt 0:02:28]} 50. Ke2 {[%emt 0:00:43]} Rb1 {[%emt 0:00:34]} 51. Kd3 {[%emt 0:00:47]} Rd1+ {[%emt 0:04:48]} 52. Ke4 {[%emt 0:08:37]} Kf6 {[%emt 0:02:25]} 53. Ra6+ {[%emt 0:00:43]} Kf7 {[%emt 0:01:36]} 54. Rd6 {[%emt 0:00:15]} Rd2 {[%emt 0:00:26]} 55. f3 Rg2 56. g4 {[%emt 0:03:18]} Rh2 {[%emt 0:05:10]} 1/2-1/2

[Event "WYCC 2018 G18"]
[Site "Halkidiki"]
[Date "2018.10.23"]
[Round "5"]
[White "Golsta, Madara"]
[Black "Perry, Tal"]
[Result "1/2-1/2"]
[ECO "A22"]
[WhiteElo "1938"]
[BlackElo "1702"]
[Annotator "NA"]
[PlyCount "61"]
[EventDate "2018.10.20"]
[EventType "swiss"]
[EventCountry "GRE"]
[SourceTitle "playchess.com"]
[Source "ChessBase"]
[SourceQuality "1"]
[TimeControl "40/5400+30:1800+30"]

1. c4 {[%emt 0:00:00]} e5 {[%emt 0:00:00]} 2. Nc3 {[%emt 0:00:25]} Nf6 {[%emt 0:00:03]} 3. g3 {[%emt 0:00:29]} Nc6 {[%emt 0:00:17]} 4. Bg2 {[%emt 0:00:20]} Bb4 {[%emt 0:00:24]} 5. Nd5 {[%emt 0:07:14]} Nxd5 {[%emt 0:02:17]} 6. cxd5 {[%emt 0:00:12]} Ne7 {[%emt 0:01:43]} 7. Nf3 {[%emt 0:00:25]} Bd6 {[%emt 0:05:31]} 8. e4 {[%emt 0:03:22]} O-O {[%emt 0:00:29]} 9. O-O $14 {[%emt 0:00:26] LiveBook: 3 Games} f5 {[%emt 0:01:30]} 10. d3 {[%emt 0:00:37]} b6 {[%emt 0:04:18]} 11. b3 {[%emt 0:03:41]} Ba6 {[%emt 0:01:37]} 12. Re1 {[%emt 0:04:13]} Ng6 {[%emt 0:03:22]} 13. h4 f4 {[%emt 0:08:35]} 14. Bb2 {[%emt 0:05:24]} fxg3 {[%emt 0:03:09]} 15. fxg3 {[%emt 0:00:15]} Qe7 {[%emt 0:17:50]} 16. a3 {[%emt 0:01:53]} Rxf3 {[%emt 0:17:06]} 17. Qxf3 {[%emt 0:02:50]} Bc5+ {[%emt 0:01:16]} 18. d4 {[%emt 0:12:03]} exd4 {[%emt 0:00:58]} 19. b4 {[%emt 0:00:07]} Rf8 {[%emt 0:01:59]} 20. Qb3 {[%emt 0:01:41]} Bd6 {[%emt 0:08:02]} 21. e5 {[%emt 0:04:48]} Nxe5 {[%emt 0:03:18]} 22. Bxd4 {[%emt 0:00:40]} Qf6 {[%emt 0:03:10]} 23. Qc3 {[%emt 0:08:48]} Nf3+ {[%emt 0:00:59]} 24. Bxf3 {[%emt 0:01:48]} Qxf3 {[%emt 0:00:02]} 25. Qxf3 {[%emt 0:00:29]} Rxf3 {[%emt 0:00:03]} 26. Be5 {[%emt 0:00:15]} Bxe5 {[%emt 0:00:36]} 27. Rxe5 {[%emt 0:00:14]} Rxg3+ {[%emt 0:00:19]} 28. Kh2 {[%emt 0:00:45]} Rg4 {[%emt 0:03:22]} 29. Kh3 {[%emt 0:02:43]} Rd4 {[%emt 0:00:33]} 30. Rae1 {[%emt 0:03:48]} h6 {[%emt 0:01:00]} 31. R1e4 {[%emt 0:19:35]} 1/2-1/2